[Event "*** Titled Tuesday Blitz"]
[Site "Chess.com"]
[Date "2020.10.27"]
[Round "4"]
[White "SamuelGhimpu2003"]
[Black "chessmachine14"]
[Result "1-0"]
[WhiteElo "2621"]
[BlackElo "2341"]
[TimeControl "180+1"]
[EndTime "10:40:15 PDT"]
[Termination "SamuelGhimpu2003 won on time"]

1. d4 {[%clk 0:03:00.9]} 1... Nf6 {[%clk 0:02:59.6]} 2. c4 {[%clk 0:03:00.3]}
2... g6 {[%clk 0:02:59.8]} 3. Nc3 {[%clk 0:03:00.1]} 3... Bg7 {[%clk 0:03:00]}
4. e4 {[%clk 0:03:00]} 4... d6 {[%clk 0:03:00.1]} 5. f3 {[%clk 0:03:00.6]} 5...
O-O {[%clk 0:03:00]} 6. Be3 {[%clk 0:03:01.5]} 6... c5 {[%clk 0:03:00]} 7. dxc5
{[%clk 0:03:00.7]} 7... dxc5 {[%clk 0:02:59]} 8. Qxd8 {[%clk 0:03:01.6]} 8...
Rxd8 {[%clk 0:02:58.5]} 9. Bxc5 {[%clk 0:03:02.5]} 9... Nc6 {[%clk 0:02:58.1]}
10. Be2 {[%clk 0:03:03.1]} 10... b6 {[%clk 0:02:57.9]} 11. Ba3 {[%clk
0:03:02.8]} 11... Bb7 {[%clk 0:02:51.9]} 12. Rd1 {[%clk 0:02:53.4]} 12... e6
{[%clk 0:02:50.6]} 13. Nb5 {[%clk 0:02:45.1]} 13... Rxd1+ {[%clk 0:02:45.9]} 14.
Bxd1 {[%clk 0:02:38.4]} 14... Ne5 {[%clk 0:02:02.2]} 15. b3 {[%clk 0:02:34.9]}
15... Nd3+ {[%clk 0:02:01.5]} 16. Kf1 {[%clk 0:02:16.2]} 16... Ne8 {[%clk
0:01:38.6]} 17. Nh3 {[%clk 0:02:08.4]} 17... a6 {[%clk 0:01:37]} 18. Nd6 {[%clk
0:01:58.7]} 18... Nxd6 {[%clk 0:01:34.9]} 19. Bxd6 {[%clk 0:01:59.6]} 19... Bd4
{[%clk 0:01:13.8]} 20. Bc2 {[%clk 0:01:40.6]} 20... Rd8 {[%clk 0:00:45]} 21. Ba3
{[%clk 0:01:28.7]} 21... Nc5 {[%clk 0:00:44.4]} 22. Ke2 {[%clk 0:01:27.3]} 22...
Bc3 {[%clk 0:00:31.1]} 23. Rd1 {[%clk 0:01:24.9]} 23... Rxd1 {[%clk 0:00:31]}
24. Bxd1 {[%clk 0:01:25.8]} 24... e5 {[%clk 0:00:30.2]} 25. Nf2 {[%clk 0:01:19]}
25... Ne6 {[%clk 0:00:30.2]} 26. g3 {[%clk 0:01:13.2]} 26... Bd4 {[%clk
0:00:21.3]} 27. Ng4 {[%clk 0:01:04.4]} 27... Kg7 {[%clk 0:00:19.4]} 28. Kd3
{[%clk 0:01:02.7]} 28... Nc5+ {[%clk 0:00:19]} 29. Bxc5 {[%clk 0:00:56.3]} 29...
bxc5 {[%clk 0:00:19.6]} 30. Ne3 {[%clk 0:00:54.2]} 30... Bxe3 {[%clk 0:00:19.8]}
31. Kxe3 {[%clk 0:00:54.4]} 31... a5 {[%clk 0:00:20.2]} 32. Kd3 {[%clk
0:00:49.9]} 32... f6 {[%clk 0:00:20]} 33. Kc3 {[%clk 0:00:49.9]} 33... Kf7
{[%clk 0:00:20.3]} 34. a3 {[%clk 0:00:49.6]} 34... Ke6 {[%clk 0:00:20.6]} 35. b4
{[%clk 0:00:49.7]} 35... axb4+ {[%clk 0:00:21]} 36. axb4 {[%clk 0:00:50.6]}
36... Kd6 {[%clk 0:00:21.3]} 37. Bc2 {[%clk 0:00:40.7]} 37... h6 {[%clk
0:00:17.9]} 38. Kb3 {[%clk 0:00:38.2]} 38... Bc6 {[%clk 0:00:10.7]} 39. b5
{[%clk 0:00:33.9]} 39... Bd7 {[%clk 0:00:10.7]} 40. Ka4 {[%clk 0:00:34.5]} 40...
Kc7 {[%clk 0:00:11.1]} 41. Ka5 {[%clk 0:00:35]} 41... Kb7 {[%clk 0:00:11.5]} 42.
b6 {[%clk 0:00:31.6]} 42... Bc6 {[%clk 0:00:11.8]} 43. f4 {[%clk 0:00:19.9]}
43... Bd7 {[%clk 0:00:11.3]} 44. Bd1 {[%clk 0:00:18.9]} 44... Bc6 {[%clk
0:00:11]} 45. Bf3 {[%clk 0:00:19.2]} 45... Bd7 {[%clk 0:00:08.6]} 46. fxe5
{[%clk 0:00:19]} 46... fxe5 {[%clk 0:00:08.6]} 47. Be2 {[%clk 0:00:19.5]} 47...
Bc6 {[%clk 0:00:07.9]} 48. Bg4 {[%clk 0:00:19.8]} 48... Bxe4 {[%clk 0:00:07.3]}
49. Kb5 {[%clk 0:00:20.5]} 49... Bd3 {[%clk 0:00:05]} 50. Kxc5 {[%clk
0:00:20.9]} 50... e4 {[%clk 0:00:05.4]} 51. Kd4 {[%clk 0:00:21.5]} 51... Kxb6
{[%clk 0:00:05.2]} 52. Be6 {[%clk 0:00:17.6]} 52... Kc6 {[%clk 0:00:03.2]} 53.
Bd5+ {[%clk 0:00:17.7]} 53... Kd6 {[%clk 0:00:03.4]} 54. Bxe4 {[%clk 0:00:18.6]}
54... Bf1 {[%clk 0:00:01.7]} 55. Bxg6 {[%clk 0:00:16.5]} 55... Bg2 {[%clk
0:00:02.3]} 56. c5+ {[%clk 0:00:15]} 56... Ke6 {[%clk 0:00:02.5]} 57. Be4 {[%clk
0:00:15.5]} 57... Bf1 {[%clk 0:00:01.8]} 58. c6 {[%clk 0:00:13.5]} 58... Kd6
{[%clk 0:00:02.7]} 59. Ke3 {[%clk 0:00:13.5]} 59... Bb5 {[%clk 0:00:02.6]} 60.
Kf4 {[%clk 0:00:13.6]} 60... Bc4 {[%clk 0:00:02.5]} 61. Kf5 {[%clk 0:00:13.5]}
61... h5 {[%clk 0:00:02.9]} 62. Kg5 {[%clk 0:00:13.6]} 62... Be2 {[%clk
0:00:03.2]} 63. h4 {[%clk 0:00:13.1]} 63... Bg4 {[%clk 0:00:03.2]} 64. Bg6
{[%clk 0:00:12.5]} 64... Kxc6 {[%clk 0:00:02.6]} 65. Bxh5 {[%clk 0:00:13.4]}
65... Be6 {[%clk 0:00:02.4]} 66. Bg6 {[%clk 0:00:10.7]} 66... Kd6 {[%clk
0:00:02.6]} 67. h5 {[%clk 0:00:11.2]} 67... Ke7 {[%clk 0:00:02.6]} 68. h6 {[%clk
0:00:11.7]} 68... Kf8 {[%clk 0:00:02.2]} 69. Kf6 {[%clk 0:00:11.7]} 1-0

[Event "*** Titled Tuesday Blitz"]
[Site "Chess.com"]
[Date "2020.10.27"]
[Round "4"]
[White "Shield12"]
[Black "TregubovP"]
[Result "1-0"]
[WhiteElo "2825"]
[BlackElo "2539"]
[TimeControl "180+1"]
[EndTime "10:40:17 PDT"]
[Termination "Shield12 won on time"]

1. e4 {[%clk 0:03:00.9]} 1... e6 {[%clk 0:02:58.7]} 2. d4 {[%clk 0:03:01]} 2...
d5 {[%clk 0:02:59.1]} 3. Nd2 {[%clk 0:03:01.9]} 3... c5 {[%clk 0:02:57.9]} 4.
Ngf3 {[%clk 0:03:01.8]} 4... Nc6 {[%clk 0:02:46.7]} 5. exd5 {[%clk 0:03:01.9]}
5... exd5 {[%clk 0:02:46.1]} 6. Bb5 {[%clk 0:03:02.5]} 6... Qe7+ {[%clk
0:02:46.4]} 7. Be2 {[%clk 0:03:02]} 7... Qc7 {[%clk 0:02:44.6]} 8. dxc5 {[%clk
0:03:02.1]} 8... Bxc5 {[%clk 0:02:43.7]} 9. Nb3 {[%clk 0:03:03]} 9... Bb6 {[%clk
0:02:38.9]} 10. Qxd5 {[%clk 0:02:57.5]} 10... Nf6 {[%clk 0:02:38]} 11. Qg5
{[%clk 0:02:54.5]} 11... O-O {[%clk 0:02:32.9]} 12. O-O {[%clk 0:02:51.8]} 12...
h6 {[%clk 0:02:26.6]} 13. Qg3 {[%clk 0:02:49.4]} 13... Qxg3 {[%clk 0:02:16.4]}
14. hxg3 {[%clk 0:02:50.3]} 14... Ne4 {[%clk 0:02:14.3]} 15. Bd3 {[%clk
0:02:38.6]} 15... Nxg3 {[%clk 0:02:12.5]} 16. Re1 {[%clk 0:02:38.8]} 16... Bf5
{[%clk 0:02:10.3]} 17. Be3 {[%clk 0:02:32.6]} 17... Bxd3 {[%clk 0:02:05.4]} 18.
cxd3 {[%clk 0:02:32.6]} 18... Nf5 {[%clk 0:02:01.1]} 19. Bxb6 {[%clk 0:02:31.7]}
19... axb6 {[%clk 0:02:01]} 20. a3 {[%clk 0:02:30.8]} 20... Rfd8 {[%clk
0:02:00.5]} 21. Red1 {[%clk 0:02:29.4]} 21... Rd5 {[%clk 0:02:00.9]} 22. Rac1
{[%clk 0:02:28.1]} 22... Rad8 {[%clk 0:01:56.2]} 23. Rc3 {[%clk 0:02:28]} 23...
g5 {[%clk 0:01:35.3]} 24. Kf1 {[%clk 0:02:11.9]} 24... g4 {[%clk 0:01:32.8]} 25.
Ne1 {[%clk 0:02:11.9]} 25... h5 {[%clk 0:01:19.7]} 26. Nc2 {[%clk 0:02:11.2]}
26... Kg7 {[%clk 0:01:19.7]} 27. Ne3 {[%clk 0:02:09]} 27... Re5 {[%clk
0:01:06.8]} 28. Nc4 {[%clk 0:01:46.6]} 28... Rb5 {[%clk 0:01:06.1]} 29. Nbd2
{[%clk 0:01:41.5]} 29... Ncd4 {[%clk 0:00:57.2]} 30. b4 {[%clk 0:01:37.4]} 30...
g3 {[%clk 0:00:27.9]} 31. Ne4 {[%clk 0:01:35.4]} 31... h4 {[%clk 0:00:28]} 32.
Ncd2 {[%clk 0:01:19.9]} 32... Rbd5 {[%clk 0:00:26.8]} 33. a4 {[%clk 0:01:08.5]}
33... Ne6 {[%clk 0:00:21.5]} 34. Nf3 {[%clk 0:01:07]} 34... Nf4 {[%clk
0:00:19.5]} 35. d4 {[%clk 0:00:41.3]} 35... Nxd4 {[%clk 0:00:18.6]} 36. fxg3
{[%clk 0:00:39.2]} 36... hxg3 {[%clk 0:00:16.3]} 37. Nxd4 {[%clk 0:00:36]} 37...
Rxd4 {[%clk 0:00:15.2]} 38. Rxg3+ {[%clk 0:00:36.9]} 38... Kf8 {[%clk
0:00:15.6]} 39. Re1 {[%clk 0:00:28.1]} 39... Rxb4 {[%clk 0:00:09.9]} 40. Nf6
{[%clk 0:00:25.2]} 40... Ng6 {[%clk 0:00:09.1]} 41. Kg1 {[%clk 0:00:24.6]} 41...
Rxa4 {[%clk 0:00:08.3]} 42. Nh7+ {[%clk 0:00:22.5]} 42... Kg7 {[%clk 0:00:07.7]}
43. Ng5 {[%clk 0:00:23.4]} 43... Rd5 {[%clk 0:00:06.1]} 44. Re7 {[%clk
0:00:21.8]} 44... Rf5 {[%clk 0:00:05.5]} 45. Rxb7 {[%clk 0:00:20.7]} 45... Rb4
{[%clk 0:00:05.1]} 46. Nf3 {[%clk 0:00:18.1]} 46... Rb1+ {[%clk 0:00:04.6]} 47.
Kh2 {[%clk 0:00:16]} 47... b5 {[%clk 0:00:05.5]} 48. Nd4 {[%clk 0:00:14.9]}
48... Rh5+ {[%clk 0:00:05.5]} 49. Rh3 {[%clk 0:00:14.7]} 49... Rxh3+ {[%clk
0:00:06.2]} 50. Kxh3 {[%clk 0:00:15.6]} 50... b4 {[%clk 0:00:06.3]} 51. Rb6
{[%clk 0:00:13.8]} 51... Ne5 {[%clk 0:00:05.4]} 52. Nf5+ {[%clk 0:00:13.2]}
52... Kh7 {[%clk 0:00:04.6]} 53. Rb5 {[%clk 0:00:12.7]} 53... Ng6 {[%clk
0:00:02.7]} 54. Rb7 {[%clk 0:00:12.4]} 54... Rb3+ {[%clk 0:00:02.7]} 55. g3
{[%clk 0:00:12.3]} 55... Ne5 {[%clk 0:00:03]} 56. Re7 {[%clk 0:00:11.3]} 56...
Nc6 {[%clk 0:00:02.1]} 57. Rc7 {[%clk 0:00:09.1]} 57... Kg6 {[%clk 0:00:02.6]}
58. Nh4+ {[%clk 0:00:07.6]} 58... Kg5 {[%clk 0:00:02.8]} 59. Rxc6 {[%clk
0:00:08.5]} 59... Rc3 {[%clk 0:00:03.1]} 60. Rb6 {[%clk 0:00:09]} 60... b3
{[%clk 0:00:03.3]} 61. Rb5+ {[%clk 0:00:09.5]} 61... Kf6 {[%clk 0:00:03.4]} 62.
Ng2 {[%clk 0:00:09.9]} 62... Ke6 {[%clk 0:00:04]} 63. Nf4+ {[%clk 0:00:10.4]}
63... Kd6 {[%clk 0:00:04.7]} 64. Ne2 {[%clk 0:00:09]} 64... Rd3 {[%clk
0:00:04.2]} 65. Nc1 {[%clk 0:00:08.9]} 65... Rc3 {[%clk 0:00:04.7]} 66. Nxb3
{[%clk 0:00:08.8]} 66... f5 {[%clk 0:00:04.4]} 67. Nd4 {[%clk 0:00:08.6]} 67...
f4 {[%clk 0:00:04]} 68. Ne2 {[%clk 0:00:08.6]} 68... Rf3 {[%clk 0:00:01.4]} 69.
Nxf4 {[%clk 0:00:08.7]} 1-0

[Event "*** Titled Tuesday Blitz"]
[Site "Chess.com"]
[Date "2020.10.27"]
[Round "4"]
[White "XDPS"]
[Black "Shuvalov"]
[Result "1-0"]
[WhiteElo "2743"]
[BlackElo "2523"]
[TimeControl "180+1"]
[EndTime "10:40:44 PDT"]
[Termination "XDPS won by checkmate"]

1. e4 {[%clk 0:02:56.1]} 1... e6 {[%clk 0:02:56.7]} 2. d4 {[%clk 0:02:51.8]}
2... d5 {[%clk 0:02:56.5]} 3. Nc3 {[%clk 0:02:49.9]} 3... Bb4 {[%clk 0:02:55.7]}
4. Ne2 {[%clk 0:02:49.1]} 4... dxe4 {[%clk 0:02:55.4]} 5. a3 {[%clk 0:02:47]}
5... Bxc3+ {[%clk 0:02:55.5]} 6. Nxc3 {[%clk 0:02:47.2]} 6... Nc6 {[%clk
0:02:55.6]} 7. d5 {[%clk 0:02:46.5]} 7... exd5 {[%clk 0:02:54.7]} 8. Qxd5 {[%clk
0:02:46.7]} 8... Be6 {[%clk 0:02:53.3]} 9. Qxe4 {[%clk 0:02:46.8]} 9... Nf6
{[%clk 0:02:53]} 10. Qa4 {[%clk 0:02:44.1]} 10... O-O {[%clk 0:02:39.7]} 11. Bd3
{[%clk 0:02:19.9]} 11... Ne5 {[%clk 0:02:34.4]} 12. Be2 {[%clk 0:02:20]} 12...
Bg4 {[%clk 0:02:23.4]} 13. f3 {[%clk 0:02:13.6]} 13... Bf5 {[%clk 0:02:21.7]}
14. O-O {[%clk 0:02:10.7]} 14... Re8 {[%clk 0:02:15.4]} 15. Bg5 {[%clk
0:02:05.2]} 15... h6 {[%clk 0:02:11.5]} 16. Bh4 {[%clk 0:02:03.1]} 16... Ng6
{[%clk 0:02:08.8]} 17. Bf2 {[%clk 0:01:56.9]} 17... c6 {[%clk 0:01:57]} 18. Rfe1
{[%clk 0:01:46.9]} 18... Qc7 {[%clk 0:01:38.5]} 19. Bf1 {[%clk 0:01:39.5]} 19...
a6 {[%clk 0:01:30.6]} 20. Qb3 {[%clk 0:01:33.1]} 20... Nd7 {[%clk 0:01:02.7]}
21. Na4 {[%clk 0:01:27.5]} 21... Be6 {[%clk 0:00:47.3]} 22. Qc3 {[%clk
0:01:23.5]} 22... Ne7 {[%clk 0:00:29.5]} 23. Nc5 {[%clk 0:01:13.8]} 23... Nxc5
{[%clk 0:00:28.3]} 24. Qxc5 {[%clk 0:01:14.7]} 24... Nd5 {[%clk 0:00:20.5]} 25.
c4 {[%clk 0:01:09.8]} 25... b6 {[%clk 0:00:17.7]} 26. Qd4 {[%clk 0:01:06.5]}
26... c5 {[%clk 0:00:17.6]} 27. Qd2 {[%clk 0:01:04.1]} 27... Ne7 {[%clk
0:00:16.2]} 28. Bg3 {[%clk 0:00:51.1]} 28... Qb7 {[%clk 0:00:13.9]} 29. b4
{[%clk 0:00:48.1]} 29... Rad8 {[%clk 0:00:13.5]} 30. Qb2 {[%clk 0:00:45.2]}
30... Nf5 {[%clk 0:00:13.3]} 31. Bf2 {[%clk 0:00:42.6]} 31... Qc6 {[%clk
0:00:11.4]} 32. Rad1 {[%clk 0:00:32]} 32... Nd4 {[%clk 0:00:10.9]} 33. Bxd4
{[%clk 0:00:30.8]} 33... cxd4 {[%clk 0:00:11.8]} 34. Rxd4 {[%clk 0:00:31.6]}
34... Rxd4 {[%clk 0:00:11.6]} 35. Qxd4 {[%clk 0:00:32.5]} 35... Rc8 {[%clk
0:00:11.5]} 36. Rc1 {[%clk 0:00:31.2]} 36... a5 {[%clk 0:00:11.8]} 37. c5 {[%clk
0:00:30.4]} 37... axb4 {[%clk 0:00:11.6]} 38. axb4 {[%clk 0:00:31.3]} 38... b5
{[%clk 0:00:08.8]} 39. Ra1 {[%clk 0:00:21.8]} 39... Bd5 {[%clk 0:00:08.3]} 40.
Ra5 {[%clk 0:00:19.4]} 40... Rb8 {[%clk 0:00:07.9]} 41. Qe5 {[%clk 0:00:18.8]}
41... Rb7 {[%clk 0:00:07]} 42. Qd6 {[%clk 0:00:17.3]} 42... Qxd6 {[%clk
0:00:06.3]} 43. cxd6 {[%clk 0:00:17.8]} 43... Bc4 {[%clk 0:00:07]} 44. Ra8+
{[%clk 0:00:15.6]} 44... Kh7 {[%clk 0:00:06.7]} 45. Rc8 {[%clk 0:00:15]} 45...
Bxf1 {[%clk 0:00:05.8]} 46. Kxf1 {[%clk 0:00:15.4]} 46... Rd7 {[%clk 0:00:06.7]}
47. Rc6 {[%clk 0:00:15.6]} 47... Kg6 {[%clk 0:00:07.2]} 48. Rb6 {[%clk 0:00:16]}
48... Kf6 {[%clk 0:00:07.4]} 49. Kf2 {[%clk 0:00:16]} 49... Ke6 {[%clk
0:00:07.2]} 50. g4 {[%clk 0:00:16.4]} 50... Rxd6 {[%clk 0:00:06.7]} 51. Rxb5
{[%clk 0:00:17]} 51... Rd2+ {[%clk 0:00:06.2]} 52. Kg3 {[%clk 0:00:17.4]} 52...
Rb2 {[%clk 0:00:05.9]} 53. h4 {[%clk 0:00:17.7]} 53... Kf6 {[%clk 0:00:04.9]}
54. h5 {[%clk 0:00:17.8]} 54... Ke7 {[%clk 0:00:05.1]} 55. Kf4 {[%clk
0:00:17.7]} 55... Kf6 {[%clk 0:00:05.1]} 56. Rb6+ {[%clk 0:00:17.8]} 56... Ke7
{[%clk 0:00:05.5]} 57. Kf5 {[%clk 0:00:18.4]} 57... Rb3 {[%clk 0:00:04.7]} 58.
f4 {[%clk 0:00:18.6]} 58... Rc3 {[%clk 0:00:04.3]} 59. Rb7+ {[%clk 0:00:17.5]}
59... Ke8 {[%clk 0:00:04.2]} 60. Rb5 {[%clk 0:00:16.5]} 60... Ke7 {[%clk
0:00:03.9]} 61. Rc5 {[%clk 0:00:15.8]} 61... Rb3 {[%clk 0:00:04]} 62. b5 {[%clk
0:00:16.2]} 62... Rb4 {[%clk 0:00:04.4]} 63. Ke5 {[%clk 0:00:15.6]} 63... Kd7
{[%clk 0:00:03.7]} 64. Kf5 {[%clk 0:00:09.8]} 64... Ke7 {[%clk 0:00:04]} 65.
Rc7+ {[%clk 0:00:09.3]} 65... Ke8 {[%clk 0:00:03.9]} 66. Rb7 {[%clk 0:00:09.8]}
66... Kf8 {[%clk 0:00:03.6]} 67. g5 {[%clk 0:00:09.3]} 67... hxg5 {[%clk
0:00:02.9]} 68. fxg5 {[%clk 0:00:10.2]} 68... Rh4 {[%clk 0:00:02.4]} 69. b6
{[%clk 0:00:08.1]} 69... Rxh5 {[%clk 0:00:02.4]} 70. Rc7 {[%clk 0:00:07.4]}
70... f6 {[%clk 0:00:01.5]} 71. b7 {[%clk 0:00:06.6]} 71... Rxg5+ {[%clk
0:00:02.4]} 72. Kf4 {[%clk 0:00:06.8]} 72... Rb5 {[%clk 0:00:02.4]} 73. Rc8+
{[%clk 0:00:07.3]} 73... Kf7 {[%clk 0:00:02.9]} 74. b8=Q {[%clk 0:00:08.2]}
74... Rxb8 {[%clk 0:00:03.5]} 75. Rxb8 {[%clk 0:00:09.1]} 75... Kg6 {[%clk
0:00:04.2]} 76. Rb7 {[%clk 0:00:09.1]} 76... Kh6 {[%clk 0:00:04]} 77. Kf5 {[%clk
0:00:09.7]} 77... Kh7 {[%clk 0:00:03.7]} 78. Rc7 {[%clk 0:00:09.2]} 78... Kh6
{[%clk 0:00:03.7]} 79. Rc1 {[%clk 0:00:09.9]} 79... Kh7 {[%clk 0:00:02.7]} 80.
Rh1+ {[%clk 0:00:10.4]} 80... Kg8 {[%clk 0:00:03.2]} 81. Kg6 {[%clk 0:00:11]}
81... Kf8 {[%clk 0:00:03.6]} 82. Re1 {[%clk 0:00:11.6]} 82... f5 {[%clk
0:00:03]} 83. Kxf5 {[%clk 0:00:11.9]} 83... Kf7 {[%clk 0:00:03.5]} 84. Kg5
{[%clk 0:00:12.3]} 84... g6 {[%clk 0:00:03.6]} 85. Re2 {[%clk 0:00:12.4]} 85...
Kf8 {[%clk 0:00:03.3]} 86. Kxg6 {[%clk 0:00:12.2]} 86... Kg8 {[%clk 0:00:03.7]}
87. Re8# {[%clk 0:00:13]} 1-0

[Event "*** Titled Tuesday Blitz"]
[Site "Chess.com"]
[Date "2020.10.27"]
[Round "4"]
[White "wannabe2700"]
[Black "lelajavakhishvili"]
[Result "1/2-1/2"]
[WhiteElo "2737"]
[BlackElo "2530"]
[TimeControl "180+1"]
[EndTime "10:40:55 PDT"]
[Termination "Game drawn by repetition"]

1. d4 {[%clk 0:03:00.9]} 1... Nf6 {[%clk 0:02:56.2]} 2. c4 {[%clk 0:03:00.8]}
2... e6 {[%clk 0:02:56.3]} 3. Nf3 {[%clk 0:02:53.8]} 3... d5 {[%clk 0:02:55.5]}
4. g3 {[%clk 0:02:54.2]} 4... dxc4 {[%clk 0:02:48.1]} 5. Bg2 {[%clk 0:02:53.4]}
5... Nc6 {[%clk 0:02:48.3]} 6. Qa4 {[%clk 0:02:49.6]} 6... Bb4+ {[%clk
0:02:44.1]} 7. Bd2 {[%clk 0:02:36.1]} 7... Nd5 {[%clk 0:02:39.2]} 8. Qb5 {[%clk
0:01:44.9]} 8... O-O {[%clk 0:02:23.9]} 9. Qxc4 {[%clk 0:01:43.3]} 9... Nb6
{[%clk 0:02:23.1]} 10. Qd3 {[%clk 0:01:38.2]} 10... e5 {[%clk 0:02:14.3]} 11.
Nxe5 {[%clk 0:01:20.8]} 11... Bxd2+ {[%clk 0:01:49.9]} 12. Nxd2 {[%clk
0:01:15.9]} 12... Nxd4 {[%clk 0:01:48.5]} 13. O-O-O {[%clk 0:00:47.6]} 13... c5
{[%clk 0:01:29.3]} 14. e3 {[%clk 0:00:46.7]} 14... Bf5 {[%clk 0:01:19.4]} 15.
Be4 {[%clk 0:00:42.8]} 15... Bxe4 {[%clk 0:01:09.4]} 16. Nxe4 {[%clk 0:00:40.8]}
16... Qc7 {[%clk 0:01:02.3]} 17. f4 {[%clk 0:00:26.5]} 17... Ne6 {[%clk
0:00:56.6]} 18. Qd6 {[%clk 0:00:25.8]} 18... Rac8 {[%clk 0:00:53.5]} 19. Rd2
{[%clk 0:00:24.5]} 19... c4 {[%clk 0:00:45.9]} 20. Rhd1 {[%clk 0:00:22.9]} 20...
Qxd6 {[%clk 0:00:42]} 21. Nxd6 {[%clk 0:00:20.9]} 21... Rc7 {[%clk 0:00:42.1]}
22. Nb5 {[%clk 0:00:20]} 22... Rc5 {[%clk 0:00:42.1]} 23. Nc3 {[%clk 0:00:15.7]}
23... g6 {[%clk 0:00:34]} 24. Nd7 {[%clk 0:00:15.6]} 24... Nxd7 {[%clk
0:00:30.9]} 25. Rxd7 {[%clk 0:00:16.5]} 25... b5 {[%clk 0:00:20.4]} 26. Rxa7
{[%clk 0:00:14.9]} 26... b4 {[%clk 0:00:20.4]} 27. Ne4 {[%clk 0:00:15.4]} 27...
Rc6 {[%clk 0:00:20]} 28. Nf6+ {[%clk 0:00:14.2]} 28... Kg7 {[%clk 0:00:19.8]}
29. Nd7 {[%clk 0:00:15.1]} 29... Rd8 {[%clk 0:00:18.4]} 30. Ne5 {[%clk
0:00:15.1]} 30... Rxd1+ {[%clk 0:00:18.2]} 31. Kxd1 {[%clk 0:00:16]} 31... Rc5
{[%clk 0:00:18.3]} 32. Ra4 {[%clk 0:00:13.9]} 32... c3 {[%clk 0:00:16.8]} 33.
Rxb4 {[%clk 0:00:11.4]} 33... cxb2 {[%clk 0:00:16]} 34. Rxb2 {[%clk 0:00:11.5]}
34... Nc7 {[%clk 0:00:16]} 35. a4 {[%clk 0:00:10.4]} 35... Nd5 {[%clk 0:00:16]}
36. Kd2 {[%clk 0:00:09.6]} 36... Ra5 {[%clk 0:00:14.6]} 37. Ra2 {[%clk 0:00:08]}
37... Nb6 {[%clk 0:00:14.9]} 38. Nd3 {[%clk 0:00:05]} 38... Rxa4 {[%clk
0:00:13.1]} 39. Rc2 {[%clk 0:00:03.4]} 39... Nd5 {[%clk 0:00:11.5]} 40. Ke2
{[%clk 0:00:03.9]} 40... Nf6 {[%clk 0:00:11.4]} 41. Kf3 {[%clk 0:00:03.6]} 41...
Ra7 {[%clk 0:00:11.3]} 42. Ne5 {[%clk 0:00:03.2]} 42... h5 {[%clk 0:00:11.4]}
43. h3 {[%clk 0:00:03.2]} 43... Re7 {[%clk 0:00:11.1]} 44. g4 {[%clk 0:00:03.7]}
44... hxg4+ {[%clk 0:00:11.7]} 45. hxg4 {[%clk 0:00:04.6]} 45... Nd7 {[%clk
0:00:12]} 46. Nc6 {[%clk 0:00:04.5]} 46... Re6 {[%clk 0:00:11.7]} 47. Nd4 {[%clk
0:00:05.4]} 47... Re7 {[%clk 0:00:11.8]} 48. Rc7 {[%clk 0:00:06]} 48... Ne5+
{[%clk 0:00:11.9]} 49. fxe5 {[%clk 0:00:06.2]} 49... Rxc7 {[%clk 0:00:12.8]} 50.
Ke4 {[%clk 0:00:06.9]} 50... Re7 {[%clk 0:00:13.1]} 51. Kd5 {[%clk 0:00:07.5]}
51... Re8 {[%clk 0:00:12.9]} 52. Nc6 {[%clk 0:00:07.6]} 52... Re6 {[%clk
0:00:12.4]} 53. g5 {[%clk 0:00:07.8]} 53... Re8 {[%clk 0:00:11.9]} 54. Kd6
{[%clk 0:00:08]} 54... Re6+ {[%clk 0:00:11.8]} 55. Kd5 {[%clk 0:00:08.3]} 55...
Re8 {[%clk 0:00:11.9]} 56. Kc5 {[%clk 0:00:08.7]} 56... Ra8 {[%clk 0:00:11.3]}
57. Kd4 {[%clk 0:00:08.5]} 57... Ra1 {[%clk 0:00:10.9]} 58. Ke4 {[%clk 0:00:09]}
58... Re1 {[%clk 0:00:10.7]} 59. Kf4 {[%clk 0:00:09.2]} 59... Rf1+ {[%clk
0:00:10.4]} 60. Kg4 {[%clk 0:00:09.7]} 60... Rf5 {[%clk 0:00:09.7]} 61. e4
{[%clk 0:00:09.7]} 61... Rf1 {[%clk 0:00:09.1]} 62. Kg3 {[%clk 0:00:09.4]} 62...
Re1 {[%clk 0:00:08.9]} 63. Kf4 {[%clk 0:00:09.3]} 63... Rg1 {[%clk 0:00:08.6]}
64. Nd4 {[%clk 0:00:08.7]} 64... Kf8 {[%clk 0:00:08.6]} 65. e6 {[%clk
0:00:08.7]} 65... Ke7 {[%clk 0:00:08.7]} 66. exf7 {[%clk 0:00:08.7]} 66... Kxf7
{[%clk 0:00:09.6]} 67. Nf3 {[%clk 0:00:09.2]} 67... Rf1 {[%clk 0:00:09.2]} 68.
Ke3 {[%clk 0:00:09.6]} 68... Ra1 {[%clk 0:00:08.6]} 69. Kf4 {[%clk 0:00:09.4]}
69... Ke6 {[%clk 0:00:08.2]} 70. Nd4+ {[%clk 0:00:09.4]} 70... Kf7 {[%clk
0:00:08.5]} 71. Nf3 {[%clk 0:00:10.3]} 71... Rf1 {[%clk 0:00:08.1]} 72. Ke3
{[%clk 0:00:10.8]} 72... Ke6 {[%clk 0:00:08.4]} 73. Nd4+ {[%clk 0:00:09.8]}
73... Ke5 {[%clk 0:00:08.7]} 74. Nf3+ {[%clk 0:00:10.3]} 74... Ke6 {[%clk
0:00:09.2]} 75. Nd2 {[%clk 0:00:10.2]} 75... Rh1 {[%clk 0:00:08.7]} 76. Nf3
{[%clk 0:00:10.5]} 76... Rh3 {[%clk 0:00:08.3]} 77. Kf4 {[%clk 0:00:10.8]} 77...
Rh1 {[%clk 0:00:08.3]} 78. Ke3 {[%clk 0:00:10.6]} 78... Ke7 {[%clk 0:00:08.3]}
79. Kf4 {[%clk 0:00:10.6]} 79... Ra1 {[%clk 0:00:07.5]} 80. Ne5 {[%clk
0:00:10.7]} 80... Rf1+ {[%clk 0:00:05.6]} 81. Ke3 {[%clk 0:00:09.8]} 81... Ke6
{[%clk 0:00:05.5]} 82. Nxg6 {[%clk 0:00:09.6]} 82... Rg1 {[%clk 0:00:05.5]} 83.
Nf4+ {[%clk 0:00:09.3]} 83... Ke5 {[%clk 0:00:05.6]} 84. Nd3+ {[%clk 0:00:09.4]}
84... Ke6 {[%clk 0:00:06]} 85. Kf4 {[%clk 0:00:09.5]} 85... Rf1+ {[%clk
0:00:05.9]} 86. Ke3 {[%clk 0:00:09.6]} 86... Rg1 {[%clk 0:00:06]} 87. Nf4+
{[%clk 0:00:09.2]} 87... Ke5 {[%clk 0:00:06]} 88. Nd3+ {[%clk 0:00:09.6]} 88...
Ke6 {[%clk 0:00:05.5]} 1/2-1/2